{"text_format":"2","workbook":"xlsx","n_sheets":1,"sheets":["Ark1"],"not_rendered":{"charts":0,"images":1,"macros":0,"external_links":0,"defined_names":2,"comments":0,"pivot_tables":0},"unopened":[],"bounds":{"document_bytes":16777216,"sheet_cells":100000,"run_cost":"one","rows_first":2000,"rows_last":500,"rows_between":2000,"halvings":0,"cell_chars":16384,"cell_head_chars":4096},"cells_cut":0,"cells_raw":0,"read":"whole","date_system":"1900"}

{"sheet":"Ark1","index":0,"n_rows":120,"n_cols":6,"rows_kept":120,"cut":false,"hidden":false,"merged":[[119,0,119,5],[107,2,107,4],[105,2,105,3],[106,2,106,4],[0,0,0,5],[109,2,109,5],[117,4,117,5],[110,3,110,5],[111,2,111,5],[113,2,113,5],[115,2,115,5],[114,2,114,5]]}
["Fyrværkerisalg 2018\nNybolig Park, Sydskellet 1, 2630 Taastrup\nBestil og betal senest 18. december"]
["Best.nr","Varenummer","Tekst","Udsalgspris","Antal","I alt pris"]
[1,"76.9260","BIANCO COMPOUND 200 SKUD 20 MM MIX",999,null,{"$f":"D3*E3","v":0}]
[2,"76.1225","MEDIUM SORTIMENT ",99,null,{"$f":"D4*E4","v":0}]
[3,"07076.9215","BATTERI NR. 1",99,null,0]
[4,"07076.9218","BATTERI NR. 2",249,null,0]
[5,"07076.9217","BATTERI NR. 3",249,null,0]
[6,"07076.9223","BATTERI NR. 4",349,null,0]
[7,"07076.9216","BATTERI NR. 5",199,null,0]
[8,"07076.9221","BATTERI NR. 6",399,null,0]
[9,"07076.9227","BATTERI NR. 7",499,null,0]
[10,"76.9215","FEST SORTIMENT FIRST CLASS",499,null,0]
[11,"76.9220","SUPERIOR SORTIMENT FIRST CLASS",799,null,0]
[12,"76.9225","BUISNESS SORTIMENT FIRST CLASS",999,null,0]
[13,"76.9230","EXECUTIVE SORTIMENT FIRST CLASS",1299,null,0]
[14,"73.1635","BLACK BATTERI 16 SKUD 20MM",99,null,0]
["14 + 32","73.1635","BLACK BATTERI 16 SKUD 20MM + GULDBOMBE RAKET FIRST CLASS",100,null,0]
[15,"73.1640","NOIR BATTERI 16 SKUD 25MM",159,null,"Sælges ikke"]
[16,"73.2517","NIGRA BATTERI 25 SKUD 20MM",149,null,0]
["17 - 1 stk","76.9200","NERO+ZWART+SVART SORT. 4 STK 36 SKUDS BATTERIER",249,null,0]
["17 - 4 stk","76.9200","NERO+ZWART+SVART SORT. 4 STK 36 SKUDS BATTERIER",799,null,0]
[18,"73.2518","SVARTUR BATTERI 25 SKUD 25MM",199,null,0]
[19,"73.4940","PRETO BATTERI 49 SKUD 20MM",299,null,0]
[20,"73.3685","NIGRUM BATTERI 36 SKUD 25MM",349,null,0]
[21,"73.4945","WAISS BATTERI 49 SKUD VINKEL 30MM",599,null,0]
[22,"73.3690","HVITUR BATTERI 36 SKUD 30MM",499,null,0]
[23,"73.3800","WHITE BATTERI 38 SKUD 25MM MIX BATTERI",449,null,0]
["24 -1 stk","76.9205","BLANKA+VALGE+BLANC+VALKON BATT.SORT. 4 STK 25 SKUD",299,null,0]
["24 - 4 stk","76.9205","BLANKA+VALGE+BLANC+VALKON BATT.SORT. 4 STK 25 SKUD",799,null,0]
[25,"73.6430","WIT BATTERI 64 SKUD 25/30 MM",799,null,0]
[26,"73.9097","FEHER BATTERI 97 SKUD 20/25/30MM",799,null,0]
[27,"76.9210","WEISS COMPOUND 140 SKUD",1299,null,0]
[28,"73.4950","BALTS BATTERI 49 SKUD 30MM",699,null,0]
[29,"73.7005","BALTA BATTERI 70 SKUD 25MM MIX",699,null,0]
[30,"72.0345","PLATINIUM 3 STK 3 KUGLER FIRST CLASS",249,null,0]
[31,"72.0460","RAKET SORTIMENT 4 STK FIRST CLASS",129,null,0]
["32 - 1 stk","72.0205","GULDBOMBE RAKET FIRST CLASS",149,null,0]
["32 - 2 stk","72.0205","GULDBOMBE RAKET FIRST CLASS",199,null,0]
[33,"72.0585","GOLD 5 STK 2 KUGLER FIRST CLASS",149,null,0]
[34,"72.0510","KL.12 SORTIMENT 5 STK FIRST CLASS",399,null,0]
[35,"72.0830","SALUT 8 STK SALUTRAKETTER FIRST CLASS",99,null,0]
[36,"72.1800","RAKET SORTIMENT 18 STK FIRST CLASS",299,null,0]
[37,"72.1235","MEGA RAKET SORT. 12 STK FIRST CLASS",799,null,0]
[38,"77.2045","KEGLEFONTÆNE MEGA 50 CM FIRST CLASS",199,null,0]
[39,"77.2040","FEST FONTÆNE FIRST CLASS",299,null,0]
[40,"77.4080","KEGLEFONTÆNE SORT. 3 STK FIRST CLASS",129,null,0]
[41,"78.6025","GULD BOMBERØR MIX 4 STK FIRST CLASS",99,null,0]
[42,"73.1010","CHOCKFONTÆNE FIRST CLASS",79,null,0]
[43,"78.3015","GULDBLITZ RØR 5 SKUD 30 MM",49,null,0]
[44,"76.3015","TEENAGE SORTIMENT ",299,null,0]
[45,"79.6615","KNALDPERLER 15 ÆSKER",29.95,null,0]
[46,"7.1005","SMILEY FACE FONTÆNE ",29,null,0]
[47,"76.3285","XXL SORTIMENT ",399,null,0]
[48,"6.3100","SORTIMENT 28",199,null,0]
[49,"76.0685","CRACKLINGBALLS 68 STK FIRST CLASS",69,null,0]
[50,"78.7980","LUFTBOMBESORTIMENT SINGLE SHOT 20/25/30 MM",149,null,0]
[51,"77.6055","ROMERLYS 100 SKUD 6 STK 1.5M ",89,null,0]
[52,"6.1250","JOKER KID",49,null,0]
[53,"77.4100","FONTÆNE SORTIMENT 15 STK FIRST CLASS",199,null,0]
[54,"77.4085","HYL SORTIMENT 49 STK",39,null,0]
[55,"77.4090","HEKSEHYL  50 STK",14.95,null,0]
["X101","9.6700","HUNDEPROPPER ",19.95,null,0]
["X102","9.8500","BESKYTTELSESBRILLER BØRN ",19.95,null,0]
["X103","9.8550","BESKYTTELSESBRILLER VOKSE ",19.95,null,0]
["X104","65.0100","HUNDEPROPPISTOLER PLAST ",14.95,null,0]
["X105","68.9200","BOMBERØRSHOLDER ",19.95,null,0]
["Y106","111.4015","MAGIC SHELL 4 KUGLERAKET",49,null,0]
["Y107","113.1920","CRASY TOWER 19 SKUDS FORMSTØBT 30 MM",99,null,{"$f":"D68*E68","v":0}]
["Y108","113.7710","DOUBLE IMPACT 77 SKUD - 25 MM",299,null,0]
["Y109","116.6015","FEST SORTIMENT ",399,null,0]
["Y110","116.9270","QUATRO LIGHTNING COMPOUND 100 SKUD - 25 MM",499,null,0]
["Y111","118.2510","LYNSTANG 5 SKUDS RØR 25 MM",29,null,0]
["Z112",1100,"Professional tændpinde",25,null,0]
["Z113",1200,"Bengalske fakler og tændpinde",20,null,0]
["Z114","D480-40","Affyringsstativer 40 Stk.",25,null,0]
["Z115","GC200","Ghost-crackers. 5 x 20 stk i flow",20,null,0]
["Z116","KS1","Knaldsnor. Stor æske med 24 stk.",5,null,0]
["Z117","SB2-MIX","Prof. Sikkerhedsbrille flex. Gul/klar",20,null,0]
["Z118","SS15","Stjernekaster 15 cm",5,null,0]
["Z119","SS45","Stjernekastere 45 cm.",20,null,0]
["Z120","SS782","Stjernekastere 70 cm",25,null,0]
["Z121","X-ATAB14","Ballon bordbombe 21 cm",29,null,0]
["Z122","X-ATAB15","Sexbombe 21 cm.",29,null,0]
["Z123","X-ATAB16","Flag/Konfetti bombe 21 cm.",29,null,0]
["Z124","X-KB100","Bordbombesortiment 3 stk.",25,null,0]
["Z125","X-KP100-24","Party poppers 50 stk",49,null,0]
["Z126","KD72","Konfetti spray",20,null,0]
["Z127","KR80","Partypopper stor",39,null,0]
["Z128","KP2","Konfettipistol med 2 dåser",59,null,0]
["Z129","PR05","Panther bomberør 4 stk. 5 skud 25 mm.",169,null,0]
["Z130","AP33","Aalborg Powerblock 36 skud 25 mm.",239,null,0]
["Z131","AP35","Aalborg Powerblock 36 skud 30 mm.",359,null,0]
["Z132","R22","Thunderstorm 4 stk i pkk.",99,null,0]
["Z133","RS21","AFAC Cylinder raketter, 21 stk.",399,null,0]
["Z134","RS12","12 Fede kugler",99,null,0]
["Z135","R2","Røgpiller ( Fed røg )",20,null,0]
["Z136","RL70","Turbo Thunderball",39,null,0]
["Z137","HE50","Heksehyl. 50 stk.",15,null,0]
["Z138","HB100","100 store heksehyl. Serieforbundet",25,null,0]
["Z139","SPK6","Spanske Kugler",49,null,0]
["Z140","JB300","AFAC Stalinorgel",99,null,0]
["Z141","JB124","AFAC Muren",249,null,0]
["Z142","ROL80","80 Skuds romerlys 6 stk.",59,null,0]
["Z143","JP1","Juniorpose 50 dele.",49,null,0]
[]
[null,null,"Total antal styk: ",null,{"$f":"SUM(E3:E104)","v":0}]
[null,null,"- 20 % rabat  ved bestilling senest 18. december: ",null,null,{"$f":"SUM(F3:F104)*20/100","v":0}]
[null,null,"Samlet pris til betaling: ",null,null,{"$f":"SUM(F3:F104)-F107","v":0}]
[]
[null,"Navn"]
[null,"Telefonnr"]
[null,"Email"]
[]
[null,"Betaling","Bankoverførsel til regnr. 2275 kontonr 7559543718"]
[null,null,"Der kan også betales med Mobilepay.\nBrug via nr.: 43456 - Skriv \"TFCKrudt + Telefonnr + Email\" i meddelelsesfelt."]
[null,null,"Ordren behandles først når betaling er registreret hos TFC"]
[]
[null,null,"Afhentning:","28. dec     kl."]
[]
["Bestillingsseddel sendes  til Frank på forretningsfoerer@taastrupfc.com  og beløb indbetales på ovennævnte konto.\nAlternativt afleveres bestillingsseddel i klubhuset til enten Torben i Cafeen eller til Frank i TFC Shoppen - Betaling er mulig samme sted.\n "]